fUSD/lending_fUSD_20260624
["ID","MTS","AMOUNT","RATE_DAILY","PERIOD"]
[426300266,1782258645000,-200.0,0.00023593,2]
[426300268,1782258645000,-631.0,0.00023636,5]
[426300261,1782258645000,-4888.88543764,0.00023441,2]
[426300263,1782258645000,-1113.58255414,0.00023484,2]
[426300260,1782258645000,-220.547498,0.00023439,2]
[426300259,1782258645000,-220.547498,0.00023439,2]
[426300265,1782258645000,-179.99432589,0.0002356,2]
[426300264,1782258645000,-10005.87988317,0.000235,2]
[426300258,1782258645000,-220.547498,0.00023439,2]
[426300269,1782258645000,-10005.87988317,0.000237,2]
[426300272,1782258645000,-197.08549854,0.00023715,2]
[426300271,1782258645000,-251.11897888,0.00023715,2]
[426300270,1782258645000,-151.0,0.00023715,2]
[426300262,1782258645000,-151.000011,0.00023441,2]
[426300255,1782258645000,-151.0,0.00023439,15]
[426300254,1782258645000,-151.0,0.00023439,2]
[426300240,1782258645000,-242.15909246,0.00023167,2]
[426300214,1782258645000,-406.0,0.00023,2]
[426300219,1782258645000,-834.0,0.00023,2]
[426300244,1782258645000,-785.0,0.00023265,2]
[426300224,1782258645000,-500.0,0.00023,3]
[426300222,1782258645000,-500.0,0.00023,3]
[426300225,1782258645000,-631.0,0.0002303,4]
[426300223,1782258645000,-500.0,0.00023,3]
[426300221,1782258645000,-183.0,0.00023,2]
[426300230,1782258645000,-871.06772465,0.00023167,2]
[426300220,1782258645000,-500.0,0.00023,3]
[426300227,1782258645000,-151.0,0.00023167,2]
[426300228,1782258645000,-242.15909246,0.00023167,2]
[426300226,1782258645000,-670.4430068,0.00023167,2]
[426300209,1782258645000,-160.0,0.00023,2]
[426300233,1782258645000,-4888.88543764,0.00023167,2]
[426300229,1782258645000,-197.08549854,0.00023167,2]
[426300241,1782258645000,-482.19478976,0.00023199,2]
[426300236,1782258645000,-242.15909246,0.00023167,2]
[426300232,1782258645000,-200.0,0.00023167,2]
[426300235,1782258645000,-1021.58590871,0.00023167,2]
[426300234,1782258645000,-242.15909246,0.00023167,2]
[426300239,1782258645000,-2405.55389863,0.00023167,2]
[426300243,1782258645000,-12208.21,0.00023212,7]
[426300231,1782258645000,-217.15233878,0.00023167,2]
[426300238,1782258645000,-151.0,0.00023167,2]
[426300237,1782258645000,-11046.30350254,0.00023167,2]
[426300308,1782258646000,-50000.0,0.00024,5]
[426300300,1782258646000,-500.0,0.00023908,2]
[426300301,1782258646000,-500.0,0.00023908,2]
[426300299,1782258646000,-1384.9,0.000239,7]
[426300306,1782258646000,-4888.88543764,0.00023989,2]
[426300302,1782258646000,-352.03360144,0.00023908,2]
[426300303,1782258646000,-785.0,0.0002393,2]
[426300307,1782258646000,-50000.0,0.00024,7]
[426300305,1782258646000,-206.51495448,0.00023986,2]
[426300311,1782258646000,-43323.49,0.00024,7]
[426300316,1782258646000,-752.18938995,0.00024,2]
[426300320,1782258646000,-500.0,0.00024,2]
[426300318,1782258646000,-216.39158367,0.00024,7]
[426300313,1782258646000,-50000.0,0.00024,5]
[426300309,1782258646000,-50000.0,0.00024,7]
[426300317,1782258646000,-10005.87988317,0.00024,2]
[426300310,1782258646000,-50000.0,0.00024,5]
[426300314,1782258646000,-50000.0,0.00024,7]
[426300319,1782258646000,-429.0,0.00024,2]
[426300315,1782258646000,-9783.62,0.00024,5]
[426300298,1782258646000,-1000.0,0.000239,8]
[426300312,1782258646000,-50000.0,0.00024,7]
[426300304,1782258646000,-200.0,0.00023932,2]
[426300332,1782258646000,-166.94882961,0.00024,2]
[426300287,1782258646000,-151.0,0.00023825,2]
[426300273,1782258646000,-871.06772465,0.00023715,2]
[426300274,1782258646000,-225.18697532,0.00023715,2]
[426300285,1782258646000,-151.0,0.00023825,2]
[426300277,1782258646000,-251.11897888,0.00023715,2]
[426300276,1782258646000,-4888.88543764,0.00023715,2]
[426300282,1782258646000,-2494.55939288,0.00023715,2]
[426300281,1782258646000,-151.0,0.00023715,2]
[426300279,1782258646000,-11455.01673214,0.00023715,2]
[426300275,1782258646000,-200.0,0.00023715,2]
[426300278,1782258646000,-1021.58590871,0.00023715,2]
[426300284,1782258646000,-482.19478976,0.000238,2]
[426300286,1782258646000,-288.535056,0.00023825,2]
[426300283,1782258646000,-251.11897888,0.00023715,2]
[426300280,1782258646000,-251.11897888,0.00023715,2]
[426300294,1782258646000,-1993.101868,0.00023825,2]
[426300289,1782258646000,-645.664511,0.00023825,2]
[426300290,1782258646000,-645.664511,0.00023825,2]
[426300288,1782258646000,-645.664511,0.00023825,2]
[426300296,1782258646000,-680762.42476019,0.00023825,2]
[426300292,1782258646000,-1993.101868,0.00023825,2]
[426300297,1782258646000,-415.52855519,0.000239,2]
[426300295,1782258646000,-1993.101868,0.00023825,2]
[426300293,1782258646000,-1993.101868,0.00023825,2]
[426300291,1782258646000,-645.664511,0.00023825,2]
[426300323,1782258646000,-552.0,0.00024,2]
[426300325,1782258646000,-273.0,0.00024,2]
[426300321,1782258646000,-594.0,0.00024,2]
[426300349,1782258646000,-11878.85235123,0.00024263,2]
[426300355,1782258646000,-260.4103811,0.00024263,2]
[426300350,1782258646000,-1021.58590871,0.00024263,2]
[426300352,1782258646000,-151.0,0.00024263,2]
[426300362,1782258646000,-10005.87988317,0.000244,2]
[426300368,1782258646000,-171.22,0.00024566,2]
[426300361,1782258646000,-1384.9,0.000244,7]
[426300363,1782258646000,-166.0,0.0002442,2]
[426300360,1782258646000,-482.19478976,0.000244,2]
[426300365,1782258646000,-1000.0,0.000245,2]
[426300351,1782258646000,-165.58568558,0.00024263,2]
[426300357,1782258646000,-2000.0,0.00024326,2]
[426300367,1782258646000,-4888.88543764,0.00024537,2]
[426300358,1782258646000,-500.0,0.00024326,2]
[426300359,1782258646000,-200.0,0.00024347,2]
[426300364,1782258646000,-285.0,0.00024421,2]
[426300371,1782258646000,-1000.0,0.00024657,2]
[426300369,1782258646000,-471.05972815,0.00024597,2]
[426300373,1782258646000,-1000.0,0.00024657,2]
[426300372,1782258646000,-1000.0,0.00024657,2]
[426300370,1782258646000,-2658.2,0.00024611,7]
[426300374,1782258646000,-1000.0,0.00024657,2]
[426300366,1782258646000,-1384.9,0.000245,7]
[426300356,1782258646000,-1138.6,0.00024324,2]
[426300322,1782258646000,-160.0,0.00024,2]
[426300348,1782258646000,-209.9340037,0.00024263,2]
[426300331,1782258646000,-1968.0,0.00024,2]
[426300326,1782258646000,-1370.0,0.00024,2]
[426300327,1782258646000,-406.0,0.00024,2]
[426300330,1782258646000,-431.0,0.00024,2]
[426300324,1782258646000,-822.0,0.00024,2]
[426300329,1782258646000,-151.0,0.00024,2]
[426300344,1782258646000,-871.06772465,0.00024263,2]
[426300333,1782258646000,-220.547498,0.00024,2]
[426300336,1782258646000,-220.547498,0.00024,2]
[426300337,1782258646000,-834.0,0.00024,2]
[426300328,1782258646000,-151.0,0.00024,2]
[426300338,1782258646000,-183.0,0.00024,2]
[426300341,1782258646000,-151.0,0.00024263,2]
[426300346,1782258646000,-200.0,0.00024263,2]
[426300345,1782258646000,-233.5188934,0.00024263,2]
[426300347,1782258646000,-4888.88543764,0.00024263,2]
[426300340,1782258646000,-631.0,0.00024242,6]
[426300354,1782258646000,-2586.85809042,0.00024263,2]
[426300339,1782258646000,-10005.87988317,0.000242,2]
[426300343,1782258646000,-260.4103811,0.00024263,2]
[426300334,1782258646000,-220.547498,0.00024,2]
[426300335,1782258646000,-220.547498,0.00024,2]
[426300342,1782258646000,-197.08549854,0.00024263,2]
[426300415,1782258647000,-500.0,0.00024658,2]
[426300416,1782258647000,-500.0,0.00024658,2]
[426300424,1782258647000,-150.0,0.00024658,2]
[426300413,1782258647000,-2000.0,0.00024658,2]
[426300412,1782258647000,-1919.93,0.00024658,2]
[426300411,1782258647000,-654.820538,0.00024658,2]
[426300409,1782258647000,-654.820538,0.00024658,2]
[426300403,1782258647000,-187.792673,0.00024658,2]
[426300410,1782258647000,-654.820538,0.00024658,2]
[426300406,1782258647000,-187.792673,0.00024658,2]
[426300408,1782258647000,-654.820538,0.00024658,2]
[426300405,1782258647000,-187.792673,0.00024658,2]
[426300431,1782258647000,-270.0455652,0.00024811,2]
[426300421,1782258647000,-150.0,0.00024658,2]
[426300423,1782258647000,-150.0,0.00024658,2]
[426300420,1782258647000,-150.0,0.00024658,2]
[426300417,1782258647000,-500.0,0.00024658,2]
[426300418,1782258647000,-500.0,0.00024658,2]
[426300422,1782258647000,-150.0,0.00024658,2]
[426300427,1782258647000,-150.0,0.000247,2]
[426300432,1782258647000,-197.08549854,0.00024811,2]
[426300426,1782258647000,-216.39158367,0.000247,7]
[426300404,1782258647000,-187.792673,0.00024658,2]
[426300437,1782258647000,-2947.10875163,0.00024811,2]
[426300429,1782258647000,-5260.63529455,0.00024781,7]
[426300414,1782258647000,-500.0,0.00024658,2]
[426300407,1782258647000,-187.792673,0.00024658,2]
[426300402,1782258647000,-187.792673,0.00024658,2]
[426300401,1782258647000,-187.792673,0.00024658,2]
[426300380,1782258647000,-1000.0,0.00024657,2]
[426300375,1782258647000,-1000.0,0.00024657,2]
[426300377,1782258647000,-1000.0,0.00024657,2]
[426300378,1782258647000,-1000.0,0.00024657,2]
[426300379,1782258647000,-1000.0,0.00024657,2]
[426300376,1782258647000,-1000.0,0.00024657,2]
[426300382,1782258647000,-1000.0,0.00024657,2]
[426300383,1782258647000,-1000.0,0.00024657,2]
[426300385,1782258647000,-1000.0,0.00024657,2]
[426300390,1782258647000,-250.0,0.00024658,16]
[426300389,1782258647000,-241.07,0.00024658,8]
[426300387,1782258647000,-1000.0,0.00024657,2]
[426300399,1782258647000,-151.0,0.00024658,2]
[426300381,1782258647000,-1000.0,0.00024657,2]
[426300386,1782258647000,-1000.0,0.00024657,2]
[426300388,1782258647000,-1000.0,0.00024657,2]
[426300392,1782258647000,-151.0,0.00024658,2]
[426300425,1782258647000,-10005.87988317,0.000247,2]
[426300391,1782258647000,-151.0,0.00024658,2]
[426300393,1782258647000,-151.0,0.00024658,2]
[426300397,1782258647000,-151.0,0.00024658,2]
[426300395,1782258647000,-1475.08,0.00024658,2]
[426300394,1782258647000,-1000.0,0.00024658,2]
[426300396,1782258647000,-151.0,0.00024658,2]
[426300398,1782258647000,-151.0,0.00024658,2]
[426300400,1782258647000,-187.792673,0.00024658,2]
[426300384,1782258647000,-1000.0,0.00024657,2]
[426300436,1782258647000,-4888.88543764,0.00024811,2]
[426300419,1782258647000,-168.70889252,0.00024658,2]
[426300428,1782258647000,-37721.26356545,0.00024781,7]
[426300470,1782258647000,-200.0,0.000251,2]
[426300469,1782258647000,-4888.88543764,0.00025085,2]
[426300471,1782258647000,-514.0,0.00025134,2]
[426300468,1782258647000,-1919.93,0.00025079,2]
[426300475,1782258647000,-1361.0,0.00025181,2]
[426300473,1782258647000,-383.0,0.00025181,2]
[426300467,1782258647000,-440.44,0.00025,2]
[426300466,1782258647000,-440.44,0.00025,2]
[426300474,1782258647000,-1277.0,0.00025181,2]
[426300472,1782258647000,-3562.0,0.00025181,2]
[426300478,1782258647000,-10005.87988317,0.000252,2]
[426300484,1782258647000,-721.12765534,0.00025357,2]
[426300464,1782258647000,-174.0,0.00025,7]
[426300483,1782258647000,-621.78829552,0.00025357,2]
[426300482,1782258647000,-150.0,0.000252,7]
[426300481,1782258647000,-150.0,0.000252,7]
[426300487,1782258647000,-197.08549854,0.00025359,2]
[426300476,1782258647000,-3648.0,0.00025181,2]
[426300479,1782258647000,-150.0,0.000252,7]
[426300477,1782258647000,-935.0,0.00025181,2]
[426300480,1782258647000,-150.0,0.000252,7]
[426300485,1782258647000,-151.0,0.00025359,2]
[426300490,1782258647000,-200.0,0.00025359,2]
[426300489,1782258647000,-251.11897888,0.00025359,2]
[426300430,1782258647000,-151.0,0.00024811,2]
[426300491,1782258647000,-1021.58590871,0.00025359,2]
[426300486,1782258647000,-280.03725111,0.00025359,2]
[426300465,1782258647000,-440.44,0.00025,2]
[426300488,1782258647000,-871.06772465,0.00025359,2]
[426300457,1782258647000,-446.00412977,0.00025,2]
[426300463,1782258647000,-2216.0,0.00025,10]
[426300434,1782258647000,-242.15909246,0.00024811,2]
[426300435,1782258647000,-200.0,0.00024811,2]
[426300442,1782258647000,-631.0,0.00024848,6]
[426300450,1782258647000,-605.97807811,0.00025,2]
[426300447,1782258647000,-50000.0,0.00025,5]
[426300449,1782258647000,-439.24752524,0.00025,2]
[426300444,1782258647000,-573.0,0.0002493,10]
[426300446,1782258647000,-50000.0,0.00025,5]
[426300445,1782258647000,-1000.0,0.00024999,2]
[426300438,1782258647000,-1021.58590871,0.00024811,2]
[426300439,1782258647000,-151.0,0.00024811,2]
[426300440,1782258647000,-2682.57183977,0.00024811,2]
[426300433,1782258647000,-871.06772465,0.00024811,2]
[426300441,1782258647000,-270.0455652,0.00024811,2]
[426300443,1782258647000,-10005.87988317,0.000249,2]
[426300456,1782258647000,-419.47364359,0.00025,2]
[426300458,1782258647000,-1980.06220337,0.00025,2]
[426300462,1782258647000,-482.19478976,0.00025,2]
[426300461,1782258647000,-1384.9,0.00025,7]
[426300460,1782258647000,-187.0,0.00025,2]
[426300459,1782258647000,-841.12878834,0.00025,2]
[426300453,1782258647000,-833.02829875,0.00025,2]
[426300455,1782258647000,-1379.7031038,0.00025,2]
[426300451,1782258647000,-174.4529408,0.00025,2]
[426300454,1782258647000,-291.21789281,0.00025,2]
[426300448,1782258647000,-1140.95060023,0.00025,2]
[426300452,1782258647000,-560.43926038,0.00025,2]
[426300530,1782258648000,-194.73596646,0.00025402,2]
[426300529,1782258648000,-172.8785797,0.00025402,2]
[426300527,1782258648000,-197.51629955,0.00025402,2]
[426300526,1782258648000,-208.81831535,0.00025402,2]
[426300523,1782258648000,-191.88953814,0.00025402,2]
[426300525,1782258648000,-216.51007784,0.00025402,2]
[426300522,1782258648000,-183.78064597,0.00025402,2]
[426300528,1782258648000,-186.972758,0.00025402,2]
[426300524,1782258648000,-163.77142192,0.00025402,2]
[426300531,1782258648000,-169.92620559,0.00025402,2]
[426300540,1782258648000,-482.35,0.00025433,2]
[426300537,1782258648000,-166.05789483,0.00025402,2]
[426300543,1782258648000,-1919.93,0.00025501,2]
[426300532,1782258648000,-196.91694613,0.00025402,2]
[426300539,1782258648000,-350.0,0.00025406,2]
[426300533,1782258648000,-165.41826738,0.00025402,2]
[426300521,1782258648000,-251.48099545,0.00025402,2]
[426300535,1782258648000,-178.546956,0.00025402,2]
[426300538,1782258648000,-155.57202973,0.00025402,2]
[426300541,1782258648000,-631.0,0.00025455,7]
[426300536,1782258648000,-168.50398799,0.00025402,2]
[426300542,1782258648000,-166.0,0.00025476,3]
[426300547,1782258648000,-1384.9,0.000256,7]
[426300544,1782258648000,-394.0,0.00025536,2]
[426300534,1782258648000,-195.86385338,0.00025402,2]
[426300520,1782258648000,-182.76920071,0.00025402,2]
[426300510,1782258648000,-10005.87988317,0.000254,2]
[426300515,1782258648000,-172.94117848,0.00025402,2]
[426300549,1782258648000,-500.0,0.00025675,7]
[426300495,1782258648000,-156.49464905,0.00025393,2]
[426300496,1782258648000,-692.46006228,0.00025393,2]
[426300494,1782258648000,-280.03725111,0.00025359,2]
[426300493,1782258648000,-2781.82699784,0.00025359,2]
[426300492,1782258648000,-151.0,0.00025359,2]
[426300497,1782258648000,-199.99541127,0.00025393,2]
[426300503,1782258648000,-203.84486829,0.00025393,2]
[426300498,1782258648000,-154.50054738,0.00025393,2]
[426300500,1782258648000,-154.21578407,0.00025393,2]
[426300509,1782258648000,-1340.45311684,0.00025393,2]
[426300506,1782258648000,-150.40697644,0.00025393,2]
[426300504,1782258648000,-215.08965049,0.00025393,2]
[426300508,1782258648000,-154.98197297,0.00025393,2]
[426300501,1782258648000,-186.01218282,0.00025393,2]
[426300505,1782258648000,-179.07342584,0.00025393,2]
[426300507,1782258648000,-199.99953643,0.00025393,2]
[426300499,1782258648000,-155.8561153,0.00025393,2]
[426300511,1782258648000,-185.18053443,0.00025402,2]
[426300519,1782258648000,-339.92391389,0.00025402,2]
[426300513,1782258648000,-282.67386791,0.00025402,2]
[426300517,1782258648000,-306.94891036,0.00025402,2]
[426300512,1782258648000,-200.88749078,0.00025402,2]
[426300514,1782258648000,-151.94870413,0.00025402,2]
[426300518,1782258648000,-168.36040682,0.00025402,2]
[426300516,1782258648000,-166.54316966,0.00025402,2]
[426300502,1782258648000,-205.8336936,0.00025393,2]
[426300552,1782258648000,-10005.87988317,0.000257,2]
[426300548,1782258648000,-1384.9,0.000256,7]
[426300586,1782258648000,-151.0,0.00026,2]
[426300578,1782258648000,-220.547498,0.00026,2]
[426300581,1782258648000,-187.792673,0.00026,2]
[426300579,1782258648000,-220.547498,0.00026,2]
[426300582,1782258648000,-187.792673,0.00026,2]
[426300588,1782258648000,-654.820538,0.00026,2]
[426300587,1782258648000,-316.0,0.00026,2]
[426300583,1782258648000,-187.792673,0.00026,2]
[426300584,1782258648000,-187.792673,0.00026,2]
[426300585,1782258648000,-151.0,0.00026,2]
[426300589,1782258648000,-654.820538,0.00026,2]
[426300597,1782258648000,-310.0,0.00026,2]
[426300591,1782258648000,-654.820538,0.00026,2]
[426300592,1782258648000,-645.664511,0.00026,2]
[426300596,1782258648000,-645.664511,0.00026,2]
[426300594,1782258648000,-645.664511,0.00026,2]
[426300590,1782258648000,-654.820538,0.00026,2]
[426300593,1782258648000,-645.664511,0.00026,2]
[426300599,1782258648000,-1993.101868,0.00026,2]
[426300595,1782258648000,-202.0,0.00026,2]
[426300600,1782258648000,-1993.101868,0.00026,2]
[426300598,1782258648000,-1993.101868,0.00026,2]
[426300603,1782258648000,-350.0,0.00026049,4]
[426300601,1782258648000,-1993.101868,0.00026,2]
[426300602,1782258648000,-250.0,0.00026027,18]
[426300580,1782258648000,-220.547498,0.00026,2]
[426300575,1782258648000,-151.0,0.00026,2]
[426300554,1782258648000,-326.29,0.00025753,2]
[426300574,1782258648000,-400379.94113713,0.00026,7]
[426300576,1782258648000,-151.0,0.00026,2]
[426300550,1782258648000,-500.0,0.00025675,7]
[426300551,1782258648000,-843.78,0.00025675,7]
[426300546,1782258648000,-302.9733903,0.00025595,2]
[426300545,1782258648000,-161.40815151,0.00025577,7]
[426300553,1782258648000,-207.74,0.0002572,2]
[426300556,1782258648000,-200.0,0.00025853,2]
[426300558,1782258648000,-1300.0,0.000259,9]
[426300557,1782258648000,-10005.87988317,0.000259,2]
[426300562,1782258648000,-871.06772465,0.00025907,2]
[426300560,1782258648000,-260.97331577,0.00025907,2]
[426300555,1782258648000,-357.0,0.00025769,7]
[426300566,1782258648000,-151.0,0.00025907,2]
[426300559,1782258648000,-151.0,0.00025907,2]
[426300565,1782258648000,-1021.58590871,0.00025907,2]
[426300568,1782258648000,-290.3986294,0.00025907,2]
[426300569,1782258648000,-1919.93,0.00025922,2]
[426300567,1782258648000,-2884.75459676,0.00025907,2]
[426300570,1782258648000,-50000.0,0.00026,7]
[426300571,1782258648000,-50000.0,0.00026,7]
[426300577,1782258648000,-220.547498,0.00026,2]
[426300572,1782258648000,-15239.35068509,0.00026,2]
[426300564,1782258648000,-200.0,0.00025907,2]
[426300561,1782258648000,-197.08549854,0.00025907,2]
[426300563,1782258648000,-260.4103811,0.00025907,2]
[426300573,1782258648000,-550.0,0.00026,2]
[426300640,1782258649000,-200.0,0.000264,2]
[426300643,1782258649000,-197.08549865,0.00026455,2]
[426300639,1782258649000,-200.0,0.000264,2]
[426300636,1782258649000,-151.0,0.000264,2]
[426300634,1782258649000,-178.64205784,0.00026399,2]
[426300641,1782258649000,-15239.35068509,0.00026444,2]
[426300642,1782258649000,-151.0,0.00026455,2]
[426300638,1782258649000,-214.5,0.000264,2]
[426300635,1782258649000,-20197.60700679,0.000264,2]
[426300646,1782258649000,-200.0,0.00026455,2]
[426300637,1782258649000,-200.0,0.000264,2]
[426300644,1782258649000,-871.0677248,0.00026455,2]
[426300664,1782258649000,-1000.0,0.0002666,2]
[426300655,1782258649000,-247.99298746,0.00026657,2]
[426300649,1782258649000,-2991.49051684,0.00026455,2]
[426300651,1782258649000,-10005.87988317,0.000265,2]
[426300648,1782258649000,-151.0,0.00026455,2]
[426300650,1782258649000,-301.14337869,0.00026455,2]
[426300647,1782258649000,-1021.58590879,0.00026455,2]
[426300653,1782258649000,-210.89490108,0.00026657,2]
[426300654,1782258649000,-152.5836371,0.00026657,2]
[426300652,1782258649000,-339.295611,0.000265,2]
[426300657,1782258649000,-1000.0,0.0002666,2]
[426300663,1782258649000,-1000.0,0.0002666,2]
[426300632,1782258649000,-323.422718,0.00026384,2]
[426300645,1782258649000,-270.0455652,0.00026455,2]
[426300629,1782258649000,-323.422718,0.00026384,2]
[426300615,1782258649000,-15239.35068509,0.00026222,2]
[426300628,1782258649000,-323.422718,0.00026384,2]
[426300665,1782258649000,-1000.0,0.0002666,2]
[426300609,1782258649000,-156.64994,0.0002614,2]
[426300607,1782258649000,-208.0,0.000261,2]
[426300605,1782258649000,-232.65239663,0.000261,2]
[426300606,1782258649000,-349.15315507,0.000261,2]
[426300611,1782258649000,-10005.87988317,0.000262,2]
[426300604,1782258649000,-631.0,0.00026061,7]
[426300610,1782258649000,-156.64994,0.0002614,2]
[426300612,1782258649000,-151.0,0.00026222,2]
[426300614,1782258649000,-275.934024,0.00026222,2]
[426300620,1782258649000,-391.0,0.00026303,2]
[426300617,1782258649000,-396.15,0.00026258,2]
[426300618,1782258649000,-350.0,0.00026295,2]
[426300613,1782258649000,-151.0,0.00026222,2]
[426300619,1782258649000,-1138.6,0.00026296,2]
[426300621,1782258649000,-1919.93,0.00026344,2]
[426300622,1782258649000,-469.552669,0.00026366,2]
[426300616,1782258649000,-185.23,0.00026251,2]
[426300624,1782258649000,-150.0,0.00026366,5]
[426300623,1782258649000,-471.528082,0.00026366,2]
[426300625,1782258649000,-323.422718,0.00026384,2]
[426300631,1782258649000,-323.422718,0.00026384,2]
[426300626,1782258649000,-323.422718,0.00026384,2]
[426300633,1782258649000,-265.904565,0.00026397,2]
[426300627,1782258649000,-323.422718,0.00026384,2]
[426300630,1782258649000,-323.422718,0.00026384,2]
[426300608,1782258649000,-343.1537301,0.000261,2]
[426300659,1782258649000,-1000.0,0.0002666,2]
[426300666,1782258649000,-1000.0,0.0002666,2]
[426300693,1782258649000,-1000.0,0.0002666,2]
[426300703,1782258649000,-1000.0,0.0002666,2]
[426300694,1782258649000,-1000.0,0.0002666,2]
[426300695,1782258649000,-1000.0,0.0002666,2]
[426300700,1782258649000,-1000.0,0.0002666,2]
[426300698,1782258649000,-1000.0,0.0002666,2]
[426300701,1782258649000,-1000.0,0.0002666,2]
[426300697,1782258649000,-1000.0,0.0002666,2]
[426300699,1782258649000,-1000.0,0.0002666,2]
[426300696,1782258649000,-1000.0,0.0002666,2]
[426300702,1782258649000,-1000.0,0.0002666,2]
[426300705,1782258649000,-1000.0,0.0002666,2]
[426300704,1782258649000,-1000.0,0.0002666,2]
[426300706,1782258649000,-1000.0,0.0002666,2]
[426300707,1782258649000,-1000.0,0.0002666,2]
[426300715,1782258649000,-1000.0,0.0002666,2]
[426300710,1782258649000,-1000.0,0.0002666,2]
[426300709,1782258649000,-1000.0,0.0002666,2]
[426300708,1782258649000,-1000.0,0.0002666,2]
[426300711,1782258649000,-1000.0,0.0002666,2]
[426300712,1782258649000,-1000.0,0.0002666,2]
[426300714,1782258649000,-1000.0,0.0002666,2]
[426300713,1782258649000,-1000.0,0.0002666,2]
[426300667,1782258649000,-1000.0,0.0002666,2]
[426300717,1782258649000,-236.59725527,0.00026661,2]
[426300692,1782258649000,-1000.0,0.0002666,2]
[426300688,1782258649000,-1000.0,0.0002666,2]
[426300716,1782258649000,-1143.08628077,0.0002666,2]
[426300686,1782258649000,-1000.0,0.0002666,2]
[426300687,1782258649000,-1000.0,0.0002666,2]
[426300656,1782258649000,-209.24814807,0.00026657,2]
[426300661,1782258649000,-1000.0,0.0002666,2]
[426300660,1782258649000,-1000.0,0.0002666,2]
[426300662,1782258649000,-1000.0,0.0002666,2]
[426300668,1782258649000,-1000.0,0.0002666,2]
[426300673,1782258649000,-1000.0,0.0002666,2]
[426300672,1782258649000,-1000.0,0.0002666,2]
[426300670,1782258649000,-1000.0,0.0002666,2]
[426300669,1782258649000,-1000.0,0.0002666,2]
[426300671,1782258649000,-1000.0,0.0002666,2]
[426300674,1782258649000,-1000.0,0.0002666,2]
[426300678,1782258649000,-1000.0,0.0002666,2]
[426300658,1782258649000,-1000.0,0.0002666,2]
[426300677,1782258649000,-1000.0,0.0002666,2]
[426300689,1782258649000,-1000.0,0.0002666,2]
[426300685,1782258649000,-1000.0,0.0002666,2]
[426300684,1782258649000,-1000.0,0.0002666,2]
[426300676,1782258649000,-1000.0,0.0002666,2]
[426300682,1782258649000,-1000.0,0.0002666,2]
[426300690,1782258649000,-1000.0,0.0002666,2]
[426300691,1782258649000,-1000.0,0.0002666,2]
[426300681,1782258649000,-1000.0,0.0002666,2]
[426300680,1782258649000,-1000.0,0.0002666,2]
[426300679,1782258649000,-1000.0,0.0002666,2]
[426300675,1782258649000,-1000.0,0.0002666,2]
[426300683,1782258649000,-1000.0,0.0002666,2]
[426300758,1782258650000,-433.02015567,0.00026673,2]
[426300756,1782258650000,-383.77907627,0.00026673,2]
[426300753,1782258650000,-336.72081364,0.00026673,2]
[426300755,1782258650000,-367.56129193,0.00026673,2]
[426300745,1782258650000,-210.37268652,0.00026671,2]
[426300751,1782258650000,-333.08633932,0.00026673,2]
[426300754,1782258650000,-679.84782777,0.00026673,2]
[426300747,1782258650000,-370.36106886,0.00026673,2]
[426300746,1782258650000,-152.63920562,0.00026671,2]
[426300752,1782258650000,-613.89782072,0.00026673,2]
[426300750,1782258650000,-345.88235695,0.00026673,2]
[426300760,1782258650000,-417.6366307,0.00026673,2]
[426300759,1782258650000,-395.0325991,0.00026673,2]